Cogmind - Beta 15 @@@ ROGUE MODE // 2025.07.28 @ 13:04:52 Player: shapeshifter Result: Destroyed by D-53 Grenadier with Mini Grenade Launcher Performance ------------- Evolutions (0) 0 Regions Visited (4) 800 Robots Destroyed (10) 50 Value Destroyed (164) 164 Prototype IDs (23) 460 Alien Tech Used (0) 0 Bonus (300) 300 TOTAL SCORE: 1774 Bonus ------- Aligned with FarCom 300 Cogmind --------- Core Integrity 0/250 Matter 290/300 Energy 110/250 System Corruption 0% Temperature Cool (0) Movement Treading (160) Location -9/Mines Parts ------- > --- POWER (1) -------- Ion Engine > --- PROPULSION (2) --- Improved Treads Improved Treads > --- UTILITY (2) ------ Large Storage Unit Weight Redist. System > --- WEAPON (2) ------- (None) > --- INVENTORY (15) --- Light Treads Light Treads Improved Treads Light Humpback High-capacity Matter Pod (200) Hardened Medium Armor Plating Medium Laser Particle Gun Particle Gun Latent Energy Streamer Grenade Launcher Rocket Launcher Peak State ------------ > --- POWER ------------ Ion Engine > --- PROPULSION ------- Improved Treads Improved Treads > --- UTILITY ---------- Large Storage Unit Weight Redist. System > --- WEAPON ----------- Particle Cannon Light Cannon > --- INVENTORY -------- Ion Engine Light Treads Light Treads Improved Treads Improved Treads Compact Wheel Large Storage Unit Compact Matter Pod Hardened Medium Armor Plating Medium Laser Particle Gun Particle Gun Latent Energy Streamer Grenade Launcher Rocket Launcher [Rating: 14] Favorites ----------- Power Ion Engine Engine Ion Engine Propulsion Improved Treads Treads Improved Treads Leg Aluminum Leg Utility Weight Redist. System Device Weight Redist. System Storage Large Storage Unit Weapon Light Cannon Energy Gun Medium Laser Energy Cannon Particle Cannon Ballistic Cannon Light Cannon Build | -11 -10 -10 -10 -9 ------- Run | Yrd Mat Min Exi Min Slots Evolved . | . . . . . Power . | . . . . . Propulsion . | . . . . . Utility . | . . . . . Weapon . | . . . . . Parts Attached 18 | 8 8 . . 2 Power 2 | 1 . . . 1 Engine 2 | 1 . . . 1 Core . | . . . . . Reactor . | . . . . . Propulsion 8 | 4 3 . . 1 Treads 6 | 2 3 . . 1 Leg 2 | 2 . . . . Wheel . | . . . . . Hover . | . . . . . Flight . | . . . . . Utility 4 | 1 3 . . . Device 1 | . 1 . . . Storage 3 | 1 2 . . . Processor . | . . . . . Hackware . | . . . . . Protection . | . . . . . Artifact . | . . . . . Weapon 4 | 2 2 . . . Energy Gun 2 | 2 . . . . Energy Cannon 1 | . 1 . . . Ballistic Gun . | . . . . . Ballistic Cannon 1 | . 1 . . . Launcher . | . . . . . Special Weapon . | . . . . . Impact Weapon . | . . . . . Slashing Weapon . | . . . . . Piercing Weapon . | . . . . . Special Melee Weapon . | . . . . . Unidentified Prototypes . | . . . . . Parts Lost 4 | . . . . 4 Power 1 | . . . . 1 Propulsion 1 | . . . . 1 Utility . | . . . . . Weapon 2 | . . . . 2 Highest Loss Streak 4 | . . . . 4 To Critical Strikes . | . . . . . Average Backups 12 | 3 9 11 14 13 Power . | . 1 1 1 . Propulsion 4 | 1 4 5 4 3 Utility 2 | . . 1 2 3 Weapon 4 | . 3 4 5 6 Tool/Special . | . . . . . Unused Backups 17 | . 5 . 3 9 Power . | . . . . . Propulsion 4 | . 2 . 1 1 Utility 7 | . 2 . 2 3 Weapon 6 | . 1 . . 5 Tool/Special . | . . . . . Average Slot Usage (%) 99 | . 96 99 100 99 Engine 14 | . 14 14 14 14 Treads 26 | . 19 27 28 28 Leg 1 | . 8 . . . Device 13 | . 10 14 14 14 Storage 14 | . 14 14 14 14 Energy Gun 1 | . 7 . . . Energy Cannon 12 | . 7 14 14 13 Ballistic Cannon 13 | . 12 13 14 13 Peak Build Rating 14 | 6 12 13 14 14 Average Rating 12 | 4 9 12 13 13 On Entrance 9 | . 6 12 13 14 Naked Turns . | . . . . . Heaviest Build 32 | 14 32 32 32 32 Greatest Support 52 | 40 52 52 52 52 Greatest Overweight (x) . | . . . . . Average Overweight (x) . | . . . . . Largest Inventory Capacity 15 | 8 15 15 15 15 Average Capacity 14 | 7 11 15 15 15 Most Carried 15 | 6 11 14 15 15 Average Carried 12 | 3 9 11 14 14 Final Capacity 15 | 8 15 15 15 15 Final Carried 15 | 6 11 14 15 13 Class Distribution -------------------- 100% | Mutant Dominant Class ---------------- Mutant | -10/Materials Mutant | -10/Mines Mutant | -10/Exiles Mutant | -9/Mines Resources | -11 -10 -10 -10 -9 ----------- Run | Yrd Mat Min Exi Min Matter Collected 490 | 247 48 147 . 48 Remotely . | . . . . . Salvage Created 191 | . 124 . . 67 Parts 18 | . 9 . . 9 Haulers Intercepted 1 | . 1 . . . Recyclers Shooed . | . . . . . Parts Field Recycled . | . . . . . Retrieved Matter . | . . . . . Parts Self-Destructed . | . . . . . Prevented . | . . . . . Kills | -11 -10 -10 -10 -9 ------- Run | Yrd Mat Min Exi Min Combat Hostiles Destroyed 9 | . 3 . . 6 Guns 1 | . 1 . . . Cannons 8 | . 2 . . 6 Classes Destroyed 3 | . 2 . . 1 Hauler 1 | . 1 . . . Swarmer 6 | . . . . 6 Grunt 3 | . 3 . . . Best Kill Streak 4 | . 4 . . 3 Combat Bots Only 3 | . 2 . . 3 Max Kills in Single Turn 1 | . 1 . . 1 Gunslinging . | . . . . . Exploded . | . . . . . Melee . | . . . . . Uniques/NPCs Destroyed . | . . . . . Combat | -11 -10 -10 -10 -9 -------- Run | Yrd Mat Min Exi Min Hostile Shots Fired 61 | . 10 . . 51 Missed 16 | . 6 . . 10 Hits 45 | . 4 . . 41 Projectile 45 | . 4 . . 41 AOE 18 | . . . . 18 Damage Taken 993 | . 44 . . 949 Core 292 | . 10 . . 282 Absorbed by Shields . | . . . . . Core Remaining (%) 100 | 100 . . . . Volleys Fired 25 | . 13 . . 12 Largest 2 | . 2 . . 2 Hottest 98 | . 80 . . 98 Shots Fired 50 | . 26 . . 24 Gun 13 | . 13 . . . Cannon 37 | . 13 . . 24 Launcher . | . . . . . Special . | . . . . . Kinetic 25 | . 13 . . 12 Thermal 25 | . 13 . . 12 Explosive . | . . . . . Electromagnetic . | . . . . . Robot Hit Streak 6 | . 6 . . 4 Robot Miss Streak 3 | . 2 . . 3 Penetration Max . | . . . . . Secondary Targets . | . . . . . Shots Hit Robots 30 | . 18 . . 12 Core Hits 14 | . 8 . . 6 Critical Kills . | . . . . . Critical Parts Destroyed . | . . . . . Critical Strikes . | . . . . . Melee Attacks . | . . . . . Impact . | . . . . . Slashing . | . . . . . Piercing . | . . . . . Sneak Attacks . | . . . . . Combat Hostiles . | . . . . . Follow-up Attacks . | . . . . . Damage Inflicted 500 | . 272 . . 228 Guns 100 | . 100 . . . Cannons 400 | . 172 . . 228 Explosions . | . . . . . Melee . | . . . . . Ramming . | . . . . . Kinetic 258 | . 172 . . 86 Thermal 242 | . 100 . . 142 Explosive . | . . . . . Electromagnetic . | . . . . . Impact . | . . . . . Slashing . | . . . . . Piercing . | . . . . . Highest Corruption . | . . . . . Average Corruption . | . . . . . Corruption Purged . | . . . . . Corruption Blocked . | . . . . . Overload Shots . | . . . . . Overflow Damage 1 | . . . . 1 Projectiles 1 | . . . . 1 Explosions . | . . . . . Melee . | . . . . . Knockbacks 4 | . 3 . . 1 Impact . | . . . . . Kinetic 4 | . 3 . . 1 Secondary . | . . . . . Self-Inflicted Damage . | . . . . . Shots . | . . . . . Rammed . | . . . . . Targets Rammed . | . . . . . Kicked . | . . . . . Crushed . | . . . . . Highest Temperature 216 | . 138 . . 216 Average Temperature 81 | . 62 . . 97 Received Heat Transfer 24 | . 24 . . . Siege Activations . | . . . . . Martial Activations . | . . . . . Shielding Activations . | . . . . . Robots Disrupted . | . . . . . Combat Hostiles . | . . . . . Robots Corrupted . | . . . . . Combat Hostiles . | . . . . . Parts Fried . | . . . . . Impact Corruptions . | . . . . . Robots Melted . | . . . . . Combat Hostiles . | . . . . . Parts Melted . | . . . . . Heat Transferred 555 | . 296 . . 259 Parts Sabotaged . | . . . . . Parts Stolen . | . . . . . Parts Stripped . | . . . . . Power Chain Reactions . | . . . . . Alert | -11 -10 -10 -10 -9 ------- Run | Yrd Mat Min Exi Min Maximum Alert Level . | . . . . . Low Security (%) 100 | 100 100 100 . 100 Level 1 . | . . . . . Level 2 . | . . . . . Level 3 . | . . . . . Level 4 . | . . . . . Level 5 . | . . . . . High Security . | . . . . . Max Security . | . . . . . Peak Influence 60 | . 47 . . 60 Initial . | . . . . . Average 9 | . 12 . . 18 Influence Increases 217 | . 77 . . 140 Destroy 0b10 Robot/C 180 | . 60 . . 120 Destroy 0b10 Robot/NC 5 | . 5 . . . Destroy Leader 32 | . 12 . . 20 Influence Decreases 217 | . 77 . . 140 Time Decay 199 | . 77 . . 122 Lost Part 18 | . . . . 18 Squads Dispatched 1 | . 1 . . . Investigation . | . . . . . Extermination . | . . . . . Reinforcement 1 | . 1 . . . Assault . | . . . . . Garrison . | . . . . . Intercept . | . . . . . Searches Triggered . | . . . . . Construction Impeded . | . . . . . Haulers Reinforced . | . . . . . Active Scanning Responses . | . . . . . Cargo Convoy Interrupts . | . . . . . Stealth | -11 -10 -10 -10 -9 --------- Run | Yrd Mat Min Exi Min Distress Signals 1 | . 1 . . . Communications Jammed . | . . . . . Distress Signals . | . . . . . Times Spotted 17 | . 6 . . 11 Peak Tracking Total 6 | . 2 . . 6 Tactical Retreats 1 | . . . . 1 Traps | -11 -10 -10 -10 -9 ------- Run | Yrd Mat Min Exi Min Traps Triggered 1 | . . 1 . . Indirectly . | . . . . . Trap Hack Attempts . | . . . . . Triggered . | . . . . . Disarmed . | . . . . . Reprogrammed . | . . . . . Reused . | . . . . . Traps Extracted . | . . . . . Installed . | . . . . . Triggered . | . . . . . Machines | -11 -10 -10 -10 -9 ---------- Run | Yrd Mat Min Exi Min Machines Disabled . | . . . . . Max in Single Turn . | . . . . . Machines Repaired . | . . . . . Machines Dismantled . | . . . . . Machines Sabotaged . | . . . . . Overloaded Fab Kills . | . . . . . Hacking | -11 -10 -10 -10 -9 --------- Run | Yrd Mat Min Exi Min Machines Accessed 3 | . . 1 1 1 Terminals 1 | . . . . 1 Fabricators . | . . . . . Repair Stations . | . . . . . Recycling Units . | . . . . . Scanalyzers . | . . . . . Garrison Access . | . . . . . Total Hacks 6 | . . 1 1 4 Successful 2 | . . 1 1 . Failed 4 | . . . . 4 Catastrophic 3 | . . . . 3 Database Lockouts . | . . . . . Manual 1 | . . . 1 . Terminals 4 | . . . . 4 Fabricators . | . . . . . Repair Stations . | . . . . . Recycling Units . | . . . . . Scanalyzers . | . . . . . Garrison Access . | . . . . . Terminal Hacks 2 | . . 1 1 . Open Door 1 | . . 1 . . Proto ID Catalog 1 | . . . 1 . Fabricator Hacks . | . . . . . Repair Station Hacks . | . . . . . Recycling Unit Hacks . | . . . . . Scanalyzer . | . . . . . Garrison Access Hacks . | . . . . . Unauthorized Hacks . | . . . . . Terminals . | . . . . . Fabricators . | . . . . . Repair Stations . | . . . . . Recycling Units . | . . . . . Scanalyzers . | . . . . . Garrison Access . | . . . . . Data Cores Recovered . | . . . . . Used . | . . . . . Hacking Detections 1 | . . . . 1 Full Trace Events 1 | . . . . 1 Feedback Events . | . . . . . Feedback Blocked . | . . . . . Robot Schematics Acquired . | . . . . . Robots Built . | . . . . . Authchips . | . . . . . Time . | . . . . . Total Robot Build Rating . | . . . . . Part Schematics Acquired . | . . . . . Parts Built . | . . . . . Authchips . | . . . . . Time . | . . . . . Total Part Build Rating . | . . . . . Parts Repaired . | . . . . . Time . | . . . . . Parts Recycled . | . . . . . Recycled Matter . | . . . . . Retrieved Matter . | . . . . . Retrieved Components . | . . . . . Parts Scanalyzed . | . . . . . Part Schematics Acquired . | . . . . . Parts Damaged . | . . . . . Bothacking | -11 -10 -10 -10 -9 ------------ Run | Yrd Mat Min Exi Min Used RIF Installer . | . . . . . Robots Hacked . | . . . . . Non-combat . | . . . . . Combat . | . . . . . Robot Hacks Applied . | . . . . . Relay Couplers Released . | . . . . . Fabnet Peak Effective % . | . . . . . Robots Rewired . | . . . . . Allies Hacked . | . . . . . Hacks Repelled . | . . . . . Allies | -11 -10 -10 -10 -9 -------- Run | Yrd Mat Min Exi Min Total Allies . | . . . . . Largest Group . | . . . . . Highest-Rated Group . | . . . . . Highest-Rated Ally . | . . . . . Total Orders . | . . . . . Ally Attacks . | . . . . . Total Damage . | . . . . . Kills . | . . . . . Allies Corrupted . | . . . . . Allies Melted . | . . . . . Intel | -11 -10 -10 -10 -9 ------- Run | Yrd Mat Min Exi Min Active Infowar (turns) . | . . . . . Robot Analysis Total . | . . . . . Derelict Logs Recovered 4 | . . 1 . 3 Drone Launches . | . . . . . Drone Recoveries . | . . . . . Exploration | -11 -10 -10 -10 -9 ------------- Run | Yrd Mat Min Exi Min Turns Passed 1951 | 84 290 455 648 474 Spaces Moved 1151 | 55 140 281 403 272 Core 15 | 15 . . . . Treads 1092 | 21 115 281 403 272 Legs 44 | 19 25 . . . Wheels . | . . . . . Hover . | . . . . . Flight . | . . . . . Fastest Speed 50 | 50 120 160 160 160 Average Speed 157 | 116 152 160 160 160 Slowest Speed 160 | 160 160 160 160 160 Overloaded Moves . | . . . . . Propulsion Burnouts . | . . . . . Robots Hopped . | . . . . . Potential Cave-ins . | . . . . . Cave-ins Triggered . | . . . . . Exploration Rate (%) 46 | 4 27 74 77 48 Regions Visited 4 Branch Regions 3 Pre-discovered Areas . | . . . . . Known Exits Taken . | . . . . . Unknown Exits Taken 4 | 1 1 1 1 . Scrap Searched 1 | . . . . 1 Spaces Dug . | . . . . . Terrain Destroyed . | . . . . . Melee . | . . . . . Projectile . | . . . . . AOE . | . . . . . Terrain Rammed . | . . . . . Walls Destroyed . | . . . . . Machines Disabled . | . . . . . Actions | -11 -10 -10 -10 -9 --------- Run | Yrd Mat Min Exi Min Total 1251 | 74 195 287 408 287 Wait 7 | . 6 . . 1 Move 1147 | 54 139 280 402 272 Hop . | . . . . . Pick Up 35 | 12 15 5 3 . Fast Attach 1 | . 1 . . . Attach 11 | 6 1 2 . 2 Detach . | . . . . . Swap 9 | 2 7 . . . Drop 16 | . 13 . 3 . Fire 25 | . 13 . . 12 Melee . | . . . . . Ram . | . . . . . Kick . | . . . . . Crush . | . . . . . Escape Stasis . | . . . . . Rewire . | . . . . . Trap . | . . . . . Miscellaneous . | . . . . . Route ------- -11/Scrapyard -10/Materials (discovered 2 exits: *Min x2) -10/Mines -10/Exiles -9/Mines (discovered 1 exit: Mat) History --------- Turn | Location | Event 24 | -11/Scrapyard | Discovered new exit (range 15) 85 | -11/Scrapyard | Entered Materials 223 | -10/Materials | Discovered new exit (range 16) 304 | -10/Materials | Build established: Mutant 317 | -10/Materials | Discovered new exit (range 16) 375 | -10/Materials | Entered Mines 377 | -10/Mines | Met a Derelict bent on vengeance 382 | -10/Mines | Learned Materials emergency access door positions 560 | -10/Mines | Met a Derelict who couldn't figure out how to use a Trap Extractor 720 | -10/Mines | Received a Rocket Launcher from a helpful Derelict 824 | -10/Mines | Deemed a non-threat by the Exiles lab entrance 824 | -10/Mines | Discovered new exit (range 5) 830 | -10/Mines | Entered Exiles 870 | -10/Exiles | Met 8R-AWN 896 | -10/Exiles | Met EX-HEX 946 | -10/Exiles | Met EX-BIN 963 | -10/Exiles | Aligned with FarCom system 965 | -10/Exiles | Given EX-Vault access code 1021 | -10/Exiles | Opened EX-Vault 1034 | -10/Exiles | Found Latent Energy Streamer 1067 | -10/Exiles | Warned to stay clear of 0b10 Research branches 1110 | -10/Exiles | Met EX-DEC 1284 | -10/Exiles | Visited The Gauntlet 1457 | -10/Exiles | Discovered new exit (range 14) 1478 | -10/Exiles | Left Exiles lab with Latent Energy Streamer 1478 | -10/Exiles | Entered Mines 1522 | -9/Mines | Learned 2 Materials zone layouts 1746 | -9/Mines | Identified exit to Materials 1895 | -9/Mines | Learned Materials emergency access door positions 1899 | -9/Mines | Assembled infested the area 1935 | -9/Mines | Core integrity fell below 50% 1943 | -9/Mines | Core integrity fell below 20% 1952 | -9/Mines | Destroyed by D-53 Grenadier with Mini Grenade Launcher Last Messages --------------- 01913_ Searching scrap... 01913_ Found Autogun. 01913_ Found 39 Matter. 01914_ Acquired 14 matter. 01930_ C-30 ARC bursts open, deploying its payload. 01930_ D-53 Grenadier unfolds itself. 01930_ T-07 Excavator destroyed. 01930_ R-06 Scavenger destroyed. 01930_ K-01 Serf collects debris. 01931_ K-01 Serf destroyed. 01933_ The unstable cave ceiling collapses. 01933_ T-07 Excavator destroyed. 01934_ The unstable cave ceiling collapses. 01938_ Ion Engine destroyed. 01942_ The unstable cave ceiling collapses. 01942_ Lgt. Cannon destroyed. 01944_ Imp. Treads destroyed. 01944_ Particle Cannon destroyed. 01948_ The unstable cave ceiling collapses. Map ----- +----------------------------------------------------+ | ?????????????????????????????????????????????????? | | ?????????????????????????????????????????????????? | | ?????????????????????????????????????????????????? | | ?????????????????????????????????????????????????? | | ?????????????????????????????????????????????????? | | ?????????????????????????????????????????????????? | | ?????????????????????????????????????????????????? | | ?????????????????????????????????????????????????? | | ?????????????????????????????????????????????????? | | ?????????????????????????????????????????????????? | | ?????????????????????????????????????????????????< | | ?????????#####???????????????????????????????????? | | ?????????# ????????????????????????????????????? | | ?????????# ????????????????????????????????????? | | ?????????# #???????????????????????k????????????? | | ?????????# #?????????????????????? ?????????????? | | ?????????# #????????????????????# "?????????????? | | ?????????# [#???????????????????# ??????????????? | | ?????????#% #??????Y????Y?????? ???????????????? | | ???????#?# #????????????????? ????????????????? | | ???????# # #?????###++###??? ?????????????????? | | ???????? #????## #### ??????????????????? | | ???????# = ???## #???????????????????? | | ???????# ### ## #????????????????? | | ?????????# # #????????????????? | | ##??????## @ #????????????????? | | ?????# # ####????????????????? | | # ?????# # #???????????????????? | | # ?????# d #???????????????????? | | # #????##! d # # #???????????????????? | | ##??#=[% # #### #???????????????????? | | ##?##!% # ##???? ???????????????????? | | ###!%! # #????##??????????????????? | | = ##### #????????????????????????? | | ##??## #????????????????????????? | | ### % ##??####????????????????????????? | | ##?## ##?????????????????????????????? | | ##?### #?????????????????????????????? | | ##?## ###[ #?????????????????????????????? | | #### ##??# % ###%###????????????????????????????# | | ???# #???# %* %#????????????????????????????# | | ???# #??## #????????????????????????????# | | ???# #### *#### #?????????????????????????#### | | ??## #??# #???????????????????????### | | ?## ##??# #??????????????????????## | | ## ##???# #?????????????????????## | | ##????# #????????????????????## " | | ##????# #????????????????##### " | | #????# #????????????????# ## " | | #??## ##????????######## ## #### | +----------------------------------------------------+ Best States ------------- Heat Dissipation 25 Energy Generation 10 Energy Capacity 250 Matter Stores 300 Matter Capacity 300 Sight Range 16 Terrain Scan Density 10 Additional Mass Support 6 Evasion (%) 55 Recoil Reduction 2 Item Schematics ----------------- None Robot Schematics ------------------ None Fabricated ------------ Nothing Repaired ---------- Nothing Alien Tech Used ----------------- None Achievements -------------- None Challenges ------------ None Game ------ Seed AblativeMicrowarpStripper Manual? 0 Play Time 00:13:45 Cumulative 64.4 hours Start 2025.07.28 @ 12:51:48 End 2025.07.28 @ 13:04:52 Sessions 1 Manual Loads 0 Difficulty Rogue Special Mode None Game No. 142 Rogue 142 Adventurer 0 Explorer 0 Win Type - Total 1 Types 1/0/0/0/0/0/0/0/0/0 Lore% 45 Gallery% 48 Achievement% 35 Wizard Run 0 Options --------- Layout 1 ASCII 0 Keyboard 0 Movement Mouse Keybinds 0 Fullscreen 1 Font 24/Smallcaps Map View 50x40 Zoom Use 0% Tactical HUD 1 Map Filters NONE Filters NONE Steam 1 RUN: 6f77f6c7-455d-4054-878a-5a4cffc46e46